bitfinex/quotes_BTCUSD_20241014
["timestamp","ask_amount","ask_price","bid_price","bid_amount"]
[1728878544129,0.42880201,64615.0,64605.0,0.16122401]
[1728878544130,0.27054047,64612.0,64610.0,0.154773]
[1728878544355,0.27404001,64615.0,64610.0,0.309549]
[1728878544580,0.27404001,64615.0,64614.0,0.154765]
[1728878544803,0.27404001,64615.0,64614.0,0.31598901]
[1728878545031,4.001e-05,64615.0,64614.0,0.31598901]
[1728878545253,0.00104001,64615.0,64614.0,0.31598901]
[1728878545962,0.00104001,64615.0,64614.0,0.32063501]
[1728878546190,4.001e-05,64615.0,64614.0,0.31763501]
[1728878546405,4.001e-05,64615.0,64614.0,0.32063501]
[1728878546853,4.001e-05,64615.0,64614.0,0.34879501]
[1728878547076,0.00104001,64615.0,64614.0,0.35679501]
[1728878548195,0.00204001,64615.0,64614.0,0.36379501]
[1728878549764,0.00204001,64615.0,64614.0,0.016646]
[1728878549986,0.26604001,64615.0,64614.0,0.016646]
[1728878550211,0.42080201,64615.0,64614.0,0.016646]
[1728878550674,0.154786,64605.0,64604.0,0.001646]
[1728878550900,0.0762,64605.0,64604.0,0.001646]
[1728878551143,0.0762,64605.0,64604.0,0.156435]
[1728878551404,0.0762,64605.0,64604.0,0.001646]
[1728878551598,0.0762,64605.0,64604.0,0.0009117]
[1728878552074,0.0762,64605.0,64604.0,0.1557007]
[1728878552504,0.0782,64605.0,64604.0,0.1557007]
[1728878552741,0.0762,64605.0,64604.0,0.1557007]
[1728878553216,0.0792,64605.0,64604.0,0.1557007]
[1728878553423,0.0792,64605.0,64604.0,0.0009117]
[1728878553897,0.0782,64605.0,64604.0,0.0009117]
[1728878554136,0.232986,64605.0,64604.0,0.0009117]
[1728878554369,0.0762,64605.0,64604.0,0.0009117]
[1728878554821,0.0782,64605.0,64604.0,0.0009117]
[1728878555298,0.232986,64605.0,64604.0,0.0009117]
[1728878555578,0.0792,64605.0,64604.0,0.0009117]
[1728878555848,0.0792,64605.0,64599.0,0.00164]
[1728878555849,0.69443847,64600.0,64599.0,0.00164]
[1728878556313,0.2641,64600.0,64599.0,0.00164]
[1728878556769,0.418898,64600.0,64599.0,0.00164]
[1728878557019,0.2641,64600.0,64599.0,0.156441]
[1728878557240,0.2761,64600.0,64599.0,0.156441]
[1728878557461,0.2761,64600.0,64599.0,0.00164]
[1728878557942,0.2761,64600.0,64599.0,0.156441]
[1728878558163,0.2761,64600.0,64599.0,0.31766501]
[1728878558383,0.0957,64600.0,64599.0,0.31766501]
[1728878558605,0.0797,64600.0,64599.0,0.31766501]
[1728878558836,0.0847,64600.0,64599.0,0.31866501]
[1728878559054,0.0897,64600.0,64599.0,0.31866501]
[1728878559297,0.0847,64600.0,64599.0,0.31766501]
[1728878559522,0.0797,64600.0,64599.0,0.31766501]
[1728878559747,0.0797,64600.0,64599.0,0.32166501]
[1728878560656,0.0797,64600.0,64599.0,0.160441]
[1728878560876,0.0797,64600.0,64599.0,0.163441]
[1728878561569,0.0797,64600.0,64599.0,0.16270518]
[1728878562020,0.0797,64600.0,64599.0,0.00790418]
[1728878562244,0.1605,64600.0,64599.0,0.00790418]
[1728878562479,0.315298,64600.0,64599.0,0.00790418]
[1728878562916,0.315298,64600.0,64599.0,0.00390418]
[1728878563138,0.320298,64600.0,64599.0,0.00390418]
[1728878563364,0.154825,64589.0,64588.0,0.23255994]
[1728878563583,0.27554047,64589.0,64588.0,0.23255994]
[1728878563810,0.43036547,64589.0,64588.0,0.23255994]
[1728878564028,0.159829,64588.0,64586.0,0.0001001]
[1728878564369,0.27054047,64589.0,64586.0,0.0001001]
[1728878564462,0.005,64588.0,64586.0,0.0001001]
[1728878564685,0.005,64588.0,64563.0,0.309773]
[1728878564917,0.154849,64579.0,64578.0,0.23255994]
[1728878565143,0.27054047,64579.0,64578.0,0.23255994]
[1728878565369,0.2646,64578.0,64573.0,0.309726]
[1728878565815,0.2646,64578.0,64575.0,0.154858]
[1728878566034,0.2646,64578.0,64566.0,0.03116]
[1728878566035,0.2646,64578.0,64577.0,0.154853]
[1728878566257,0.2646,64578.0,64575.0,0.154857]
[1728878566488,0.28886796,64578.0,64575.0,0.154857]
[1728878566725,0.28886796,64578.0,64572.0,0.154863]
[1728878566943,0.42540147,64574.0,64570.0,0.15487]
[1728878567174,0.005,64572.0,64569.0,0.154872]
[1728878567393,0.005,64572.0,64565.0,0.309764]
[1728878567640,0.27054047,64569.0,64564.0,0.38744394]
[1728878567862,0.005,64568.0,64566.0,0.15488]
[1728878568087,0.005,64572.0,64562.0,0.03116]
[1728878568325,0.02427055,64573.0,64568.0,0.154875]
[1728878568550,0.02427055,64573.0,64568.0,0.154874]
[1728878568551,0.154866,64572.0,64568.0,0.154874]
[1728878568772,0.02927055,64573.0,64553.0,0.03116]
[1728878568773,0.27554047,64569.0,64553.0,0.03116]
[1728878569009,0.27554047,64569.0,64564.0,0.155882]
[1728878569010,0.154876,64568.0,64564.0,0.155882]
[1728878569272,0.27054047,64569.0,64567.0,0.154876]
[1728878569521,0.27054047,64569.0,64565.0,0.15488]
[1728878569522,0.005,64569.0,64565.0,0.15488]
[1728878569747,0.17914321,64570.0,64559.0,0.23255994]
[1728878569748,0.02927221,64570.0,64559.0,0.23255994]
[1728878569975,0.02927221,64570.0,64569.0,0.154873]
[1728878569976,0.02427221,64570.0,64569.0,0.154873]
[1728878570234,0.02427221,64570.0,64567.0,0.154875]
[1728878570475,0.02927221,64570.0,64568.0,0.002]
[1728878570710,0.02927221,64570.0,64568.0,0.001646]
[1728878570945,0.005,64569.0,64568.0,0.001646]
[1728878571429,0.43041347,64569.0,64568.0,0.001646]
[1728878571676,0.43041347,64569.0,64568.0,0.0004232]
[1728878571677,0.43141347,64569.0,64568.0,0.0004232]
[1728878572193,0.43041347,64569.0,64568.0,0.0004232]
[1728878572424,0.43141347,64569.0,64568.0,0.0004232]
[1728878572654,0.006,64569.0,64568.0,0.0004232]
[1728878572893,0.005,64569.0,64568.0,0.0004232]
[1728878573142,0.159873,64569.0,64568.0,0.0004232]
[1728878573396,0.167873,64569.0,64568.0,0.0004232]
[1728878573616,0.171873,64569.0,64568.0,0.0004232]
[1728878573854,0.166873,64569.0,64568.0,0.0004232]
[1728878574094,0.017,64569.0,64568.0,0.0004232]
[1728878574568,0.009,64569.0,64568.0,0.0004232]
[1728878575040,0.164873,64569.0,64568.0,0.0004232]
[1728878575270,0.01,64569.0,64568.0,0.0004232]
[1728878575507,0.164873,64569.0,64568.0,0.0004232]
[1728878576715,0.18914633,64569.0,64568.0,0.0004232]
[1728878576949,0.03427333,64569.0,64568.0,0.0004232]
[1728878577187,0.18914633,64569.0,64568.0,0.0004232]
[1728878577646,0.03427333,64569.0,64568.0,0.0004232]
[1728878577896,0.18914633,64569.0,64568.0,0.0004232]
[1728878578117,0.02927333,64569.0,64568.0,0.1552982]
[1728878578345,0.03427333,64569.0,64568.0,0.0004232]
[1728878578846,0.18914633,64569.0,64568.0,0.0004232]
[1728878579075,0.02927333,64569.0,64568.0,0.0004232]
[1728878579548,0.03427333,64569.0,64568.0,0.0004232]
[1728878580278,0.18914633,64569.0,64568.0,0.0004232]
[1728878580790,0.03327333,64569.0,64568.0,0.0004232]
[1728878581072,0.18414633,64569.0,64568.0,0.0004232]
[1728878581307,0.19014633,64569.0,64568.0,0.0004232]
[1728878581540,0.154887,64563.0,64562.0,0.23249314]
[1728878581769,0.1754414,64566.0,64562.0,0.38738214]
[1728878582002,0.154887,64563.0,64558.0,0.154898]
[1728878582250,0.1754414,64566.0,64559.0,0.23255994]
[1728878582493,0.03027333,64569.0,64551.0,0.309831]
[1728878582494,0.1754414,64562.0,64551.0,0.309831]
[1728878582736,0.3303314,64562.0,64557.0,0.1549]
[1728878582972,0.1754414,64562.0,64552.0,0.39378395]
[1728878583236,0.1754414,64562.0,64553.0,0.309821]
[1728878583476,0.1754414,64562.0,64552.0,0.39378395]
[1728878583477,0.1754414,64554.0,64550.0,0.0001001]
[1728878583941,0.1754414,64554.0,64551.0,0.23255994]
[1728878583944,0.309813,64555.0,64551.0,0.23255994]
[1728878583945,0.154908,64555.0,64551.0,0.23255994]
[1728878584169,0.154908,64555.0,64550.0,0.1550171]
[1728878584170,0.30982,64554.0,64550.0,0.0001001]
[1728878584418,0.154911,64553.0,64550.0,0.0001001]
[1728878584664,0.154912,64553.0,64550.0,0.0001001]
[1728878584919,0.154915,64552.0,64550.0,0.0001001]
[1728878585176,0.012,64554.0,64549.0,0.00164]
[1728878585434,0.4902434,64558.0,64549.0,0.00164]
[1728878585435,0.1754414,64556.0,64549.0,0.00164]
[1728878585664,0.1754414,64552.0,64551.0,0.154916]
[1728878586163,0.009,64553.0,64551.0,0.155915]
[1728878586619,0.18818778,64553.0,64549.0,0.15492]
[1728878586847,0.1754414,64550.0,64543.0,0.26371994]
[1728878587077,0.1754414,64550.0,64546.0,0.309854]
[1728878587302,0.1754414,64550.0,64549.0,0.154921]
[1728878587541,0.1754414,64550.0,64547.0,0.30985]
[1728878587542,0.18318878,64553.0,64548.0,0.154922]
[1728878587774,0.18318878,64553.0,64547.0,0.154924]
[1728878587775,0.1754414,64550.0,64547.0,0.154924]
[1728878588008,0.2727,64549.0,64539.0,0.001646]
[1728878588262,0.1754414,64540.0,64539.0,0.001646]
[1728878588719,0.1754414,64544.0,64543.0,0.154933]
[1728878588943,0.1754414,64544.0,64539.0,0.311535]
[1728878588944,0.02428016,64545.0,64540.0,0.309882]
[1728878589181,0.02428016,64545.0,64541.0,0.309878]
[1728878589403,0.02428016,64545.0,64544.0,0.154933]
[1728878589632,0.2727,64549.0,64544.0,0.01581269]
[1728878589633,0.16854341,64549.0,64544.0,0.01581269]
[1728878589856,0.16854341,64549.0,64548.0,0.154923]
[1728878590142,0.0772,64557.0,64548.0,0.154923]
[1728878590143,0.02427865,64561.0,64548.0,0.16122401]
[1728878590379,0.23255994,64580.0,64558.0,0.154899]
[1728878590380,0.23255994,64559.0,64558.0,0.154899]
[1728878590593,0.23255994,64559.0,64551.0,0.005]
[1728878590594,0.1754414,64569.0,64552.0,0.00485179]
[1728878590836,0.1754414,64569.0,64566.0,0.15488]
[1728878591077,0.1754414,64569.0,64544.0,0.02857787]
[1728878591306,0.1754414,64561.0,64558.0,0.23255994]
[1728878591528,0.1754414,64561.0,64547.0,0.19238401]
[1728878591755,0.30979,64560.0,64549.0,0.309839]
[1728878591980,0.1754414,64554.0,64550.0,0.309834]
[1728878592220,0.154923,64548.0,64543.0,0.154934]
[1728878592442,0.154923,64548.0,64541.0,0.03116]
[1728878592443,0.1754414,64548.0,64547.0,0.23255994]
[1728878592669,0.1754414,64548.0,64544.0,0.154931]
[1728878593125,0.3303644,64548.0,64544.0,0.154931]
[1728878593378,0.1754414,64548.0,64539.0,0.23420594]
[1728878593605,0.1806,64551.0,64541.0,0.15494]
[1728878593606,0.1754414,64543.0,64541.0,0.15494]
[1728878593829,0.1754414,64543.0,64539.0,0.38914994]
[1728878594068,0.154929,64546.0,64541.0,0.0001001]
[1728878594294,0.001,64548.0,64541.0,0.0001001]
[1728878594295,0.002,64548.0,64547.0,0.154925]
[1728878594518,0.002,64548.0,64541.0,0.0001001]
[1728878594751,0.001,64548.0,64546.0,0.154927]
[1728878594985,0.001,64543.0,64542.0,0.154937]
[1728878595709,0.001,64543.0,64541.0,0.1550391]
[1728878595940,0.001,64543.0,64541.0,0.1580391]
[1728878596175,0.3303624,64549.0,64544.0,0.154932]
[1728878596394,0.001,64548.0,64544.0,0.309865]
[1728878596627,0.001,64548.0,64539.0,0.001646]
[1728878596628,0.001,64548.0,64547.0,0.154925]
[1728878597082,0.001,64548.0,64539.0,0.032806]
[1728878597083,0.1754414,64548.0,64539.0,0.032806]
[1728878597313,0.154937,64542.0,64541.0,0.003]
[1728878597536,0.001,64543.0,64539.0,0.001646]
[1728878597757,0.001,64543.0,64540.0,0.03116]
[1728878597758,0.309872,64543.0,64540.0,0.03116]
[1728878597984,0.15494,64541.0,64540.0,0.03116]
[1728878598209,0.1982,64544.0,64540.0,0.03116]
[1728878598866,0.154939,64542.0,64539.0,0.001646]
[1728878599116,0.353133,64544.0,64540.0,0.154941]
[1728878599349,0.1982,64544.0,64539.0,0.001646]
[1728878599580,0.001,64543.0,64540.0,0.003]
[1728878599830,0.1754414,64542.0,64539.0,0.032806]
[1728878600322,0.1754414,64542.0,64541.0,0.15494]
[1728878600323,0.001,64542.0,64541.0,0.15494]
[1728878600569,0.1982,64544.0,64541.0,0.154939]
[1728878600837,0.1982,64544.0,64543.0,0.154935]
[1728878601080,0.1982,64544.0,64540.0,0.003]
[1728878601566,0.353133,64544.0,64540.0,0.15745176]
[1728878601811,0.353133,64544.0,64540.0,0.00251076]
[1728878602047,0.1982,64544.0,64540.0,0.00251076]
[1728878602276,0.1982,64544.0,64539.0,0.001646]
[1728878602277,0.154939,64542.0,64539.0,0.001646]
[1728878602520,0.001,64542.0,64539.0,0.001646]
[1728878602741,0.28594265,64542.0,64539.0,0.001646]
[1728878603238,0.02428093,64547.0,64540.0,0.003]
[1728878603464,0.1861,64553.0,64539.0,0.001646]
[1728878603693,0.23255994,64547.0,64543.0,0.309868]
[1728878603923,0.1861,64553.0,64541.0,0.154939]
[1728878603924,0.001,64542.0,64541.0,0.154939]
[1728878604152,0.001,64542.0,64539.0,0.035726]
[1728878604153,0.154921,64549.0,64545.0,0.15493]
[1728878604371,0.154921,64549.0,64543.0,0.154933]
[1728878604611,0.1754414,64551.0,64544.0,0.154932]
[1728878604846,0.1754414,64546.0,64539.0,0.001646]
[1728878605071,0.154936,64543.0,64539.0,0.001646]
[1728878605536,0.154932,64545.0,64539.0,0.001646]
[1728878605763,0.184942,64540.0,64539.0,0.001646]
[1728878606466,0.265042,64540.0,64539.0,0.004646]
[1728878606938,0.265042,64540.0,64539.0,0.001646]
[1728878607167,0.031,64540.0,64539.0,0.004646]
[1728878607397,0.03975245,64540.0,64539.0,0.156591]
[1728878607624,0.03975245,64540.0,64539.0,0.001646]
[1728878608080,0.03975245,64540.0,64539.0,0.156591]
[1728878608788,0.04375245,64540.0,64539.0,0.156591]
[1728878609019,0.04275245,64540.0,64539.0,0.001646]
[1728878609303,0.03,64540.0,64539.0,0.001646]
[1728878609534,0.03,64540.0,64539.0,0.189591]
[1728878609756,0.031,64540.0,64539.0,0.034646]
[1728878609983,0.031,64540.0,64539.0,0.189591]
[1728878611133,0.03,64535.0,64534.0,0.03164]
[1728878611356,0.03,64523.0,64522.0,0.0001001]
[1728878611586,0.184985,64522.0,64521.0,0.0106011]
[1728878613190,0.189985,64522.0,64521.0,0.0116011]
[1728878613420,0.43980901,64522.0,64521.0,0.0116011]
[1728878614097,0.53980901,64522.0,64521.0,0.0116011]
[1728878614361,0.185005,64514.0,64503.0,0.23420594]
[1728878614581,0.13,64512.0,64503.0,0.001646]
[1728878614808,0.5359068,64506.0,64504.0,0.23255994]
[1728878615027,0.69713081,64506.0,64503.0,0.001646]
[1728878615751,0.66278581,64506.0,64503.0,0.001646]
[1728878615973,0.74402682,64506.0,64503.0,0.001646]
[1728878616204,0.58265711,64506.0,64503.0,0.001646]
[1728878616421,0.59265711,64506.0,64503.0,0.001646]
[1728878616672,0.6169542,64506.0,64503.0,0.001646]
[1728878616962,0.6249542,64506.0,64503.0,0.001646]
[1728878617462,0.5042752,64506.0,64503.0,0.001646]
[1728878617735,0.6592992,64506.0,64503.0,0.001646]
[1728878617969,1.4300533,64506.0,64503.0,0.001646]
[1728878621596,1.4300533,64506.0,64489.0,0.001646]
[1728878621597,0.03,64499.0,64492.0,0.23255994]
[1728878621847,0.310063,64503.0,64492.0,0.23255994]
[1728878621848,0.4558091,64493.0,64492.0,0.23255994]
[1728878622157,0.185062,64490.0,64489.0,0.001401]
[1728878623253,0.61298601,64490.0,64489.0,0.001401]
[1728878623485,0.4558401,64480.0,64479.0,0.001646]
[1728878623705,0.03,64480.0,64479.0,0.001646]
[1728878624161,0.53,64480.0,64479.0,0.001646]
[1728878625266,0.538,64480.0,64479.0,0.001646]
[1728878625726,0.544,64480.0,64479.0,0.001646]
[1728878626209,0.544,64480.0,64467.0,0.310235]
[1728878626210,0.03,64459.0,64452.0,0.310308]
[1728878626431,0.03,64461.0,64458.0,0.23255994]
[1728878626674,0.03,64461.0,64453.0,0.005]
[1728878626924,0.03,64461.0,64459.0,0.155136]
[1728878627164,0.03,64461.0,64460.0,0.155134]
[1728878627850,0.034,64461.0,64460.0,0.155134]
[1728878628078,0.03,64461.0,64460.0,0.155134]
[1728878628542,0.23255994,64470.0,64460.0,0.155134]
[1728878628543,0.03,64465.0,64460.0,0.00485896]
[1728878628768,0.2707541,64466.0,64453.0,0.03108]
[1728878628769,0.03,64462.0,64453.0,0.03108]
[1728878629003,0.03,64462.0,64454.0,0.47637913]
[1728878629236,0.001,64461.0,64457.0,0.155139]
[1728878629490,0.001,64461.0,64455.0,0.310293]
[1728878629491,0.031,64461.0,64455.0,0.310293]
[1728878629724,0.031,64461.0,64457.0,0.155141]
[1728878629966,0.03,64458.0,64456.0,0.155143]
[1728878630194,0.03,64458.0,64447.0,0.465496]
[1728878630434,0.03,64458.0,64455.0,0.155146]
[1728878630698,0.23255994,64457.0,64456.0,0.03]
[1728878630955,0.7707541,64461.0,64456.0,0.03]
[1728878631188,0.23255994,64460.0,64456.0,0.03]
[1728878631421,0.7707541,64461.0,64456.0,0.03]
[1728878631656,0.006,64458.0,64457.0,0.03]
[1728878631920,0.155139,64458.0,64457.0,0.03]
[1728878632666,0.0243129,64459.0,64454.0,0.001648]
[1728878632904,0.006,64458.0,64454.0,0.001648]
[1728878633349,0.018,64458.0,64454.0,0.001648]
[1728878633584,0.018,64458.0,64456.0,0.185143]
[1728878633800,0.018,64458.0,64457.0,0.03]
[1728878634233,0.012,64458.0,64457.0,0.03]
[1728878634454,0.026,64458.0,64457.0,0.03]
[1728878634660,0.014,64458.0,64457.0,0.03]
[1728878634905,0.017,64458.0,64457.0,0.03]
[1728878635354,0.003,64458.0,64457.0,0.03]
[1728878635580,0.005,64458.0,64457.0,0.03]
[1728878635799,0.008,64458.0,64457.0,0.03485979]
[1728878636683,0.005,64458.0,64457.0,0.03485979]
[1728878637145,0.155123,64465.0,64457.0,0.03485979]
[1728878637389,0.23255994,64463.0,64458.0,0.00485979]
[1728878637633,0.23255994,64463.0,64459.0,0.00485979]
[1728878637865,0.17604023,64463.0,64460.0,0.00485979]
[1728878638075,0.17604023,64463.0,64461.0,0.00485979]
[1728878638303,0.17941949,64472.0,64463.0,0.155126]
[1728878638525,0.001,64499.0,64475.0,0.155098]
[1728878638526,0.38763694,64484.0,64475.0,0.155098]
[1728878638783,0.155082,64482.0,64476.0,0.03485873]
[1728878639004,0.15508,64483.0,64477.0,0.00485855]
[1728878639222,0.15508,64483.0,64478.0,0.00485855]
[1728878639450,0.48619123,64485.0,64479.0,0.00485855]
[1728878639451,0.17604023,64485.0,64479.0,0.00485855]
[1728878639673,0.17604023,64485.0,64476.0,0.03]
[1728878639674,0.15508,64483.0,64480.0,0.00485855]
[1728878639899,0.15508,64483.0,64477.0,0.03]
[1728878639900,0.005,64482.0,64481.0,0.00485855]
[1728878640178,0.160082,64482.0,64481.0,0.00485855]
[1728878640396,0.155082,64482.0,64481.0,0.00485855]
[1728878640615,0.5,64482.0,64481.0,0.00485855]
[1728878640832,0.655082,64482.0,64481.0,0.04263186]
[1728878641059,0.5,64482.0,64481.0,0.04263186]
[1728878641276,0.664082,64482.0,64481.0,0.04363186]
[1728878641547,0.664082,64482.0,64481.0,0.04263186]
[1728878641766,0.664082,64482.0,64481.0,0.04214182]
[1728878642225,0.664082,64482.0,64481.0,0.04204182]
[1728878642448,0.664082,64482.0,64481.0,0.04114182]
[1728878642449,0.83330601,64482.0,64481.0,0.04114182]
[1728878643109,0.83330601,64482.0,64481.0,0.04104182]
[1728878643324,0.83330601,64482.0,64481.0,0.03827384]
[1728878643541,0.78686926,64482.0,64481.0,0.03817384]
[1728878643755,0.78686926,64482.0,64481.0,0.03797384]
[1728878643989,0.47138725,64482.0,64481.0,0.03787384]
[1728878644212,0.47138725,64482.0,64481.0,0.0471907]
[1728878644432,0.47138725,64482.0,64481.0,0.0470907]
[1728878644659,0.51782325,64482.0,64481.0,0.0467907]
[1728878644911,0.51782325,64482.0,64481.0,0.0465907]
[1728878645139,0.51782325,64482.0,64481.0,0.0460907]
[1728878645356,0.51782325,64482.0,64481.0,0.2011747]
[1728878645587,0.48284557,64482.0,64481.0,0.2009747]
[1728878645817,0.48284557,64482.0,64481.0,0.2007747]
[1728878646045,0.48284557,64482.0,64481.0,0.39476942]
[1728878646276,0.48284557,64482.0,64481.0,0.38499871]
[1728878646519,0.51782357,64482.0,64481.0,0.38499871]
[1728878647394,0.46125392,64482.0,64481.0,0.42584906]
[1728878647613,0.46025392,64482.0,64481.0,0.42584906]
[1728878647903,0.46025392,64482.0,64481.0,0.42784906]
[1728878648134,0.000824,64482.0,64481.0,0.42584906]
[1728878648357,0.000824,64482.0,64481.0,0.42784906]
[1728878648568,0.001824,64482.0,64481.0,0.40208801]
[1728878648778,0.001824,64482.0,64481.0,0.41956735]
[1728878648998,0.001824,64482.0,64481.0,0.42156735]
[1728878649237,0.001824,64482.0,64481.0,0.41956735]
[1728878649973,0.23255994,64496.0,64495.0,0.18475]
[1728878649974,0.18794719,64496.0,64495.0,0.18475]
[1728878650404,0.23255994,64503.0,64497.0,0.0297]
[1728878650635,0.23255994,64503.0,64497.0,0.184745]
[1728878650858,0.155043,64498.0,64497.0,0.0297]
[1728878651077,0.31626701,64498.0,64497.0,0.0297]
[1728878651540,0.155036,64501.0,64497.0,0.0297]
[1728878651788,0.29494825,64502.0,64497.0,0.02945509]
[1728878651995,0.001,64498.0,64497.0,0.02945509]
[1728878652425,0.44998225,64502.0,64498.0,0.02945509]
[1728878652426,0.02429889,64502.0,64498.0,0.02945509]
[1728878652664,0.011,64501.0,64498.0,0.02945509]
[1728878653119,0.155041,64499.0,64498.0,0.02945509]
[1728878653573,0.28164936,64501.0,64493.0,0.155053]
[1728878653792,0.28164936,64501.0,64499.0,0.02945509]
[1728878653793,0.011,64501.0,64499.0,0.02945509]
[1728878654012,0.27064936,64506.0,64499.0,0.02945509]
[1728878654474,0.155038,64500.0,64499.0,0.02945509]
[1728878654687,0.27064936,64501.0,64499.0,0.02945509]
[1728878654904,0.27864936,64501.0,64493.0,0.23255994]
[1728878655134,0.27064936,64501.0,64495.0,0.15505]
[1728878655368,0.27064936,64501.0,64493.0,0.23255994]
[1728878655618,0.155039,64500.0,64493.0,0.23255994]
[1728878655838,0.27064936,64501.0,64494.0,0.465157]
[1728878656048,0.27064936,64501.0,64489.0,0.310128]
[1728878656264,0.10860925,64497.0,64490.0,0.23741663]
[1728878656489,0.155042,64499.0,64492.0,0.155056]
[1728878656711,0.155042,64499.0,64490.0,0.23255994]
[1728878656712,0.155046,64497.0,64490.0,0.38762094]
[1728878656945,0.58072536,64501.0,64489.0,0.310128]
[1728878657154,0.155052,64495.0,64484.0,0.023]
[1728878657414,0.27764936,64501.0,64484.0,0.023]
[1728878657415,0.155042,64499.0,64492.0,0.23255994]
[1728878657658,0.310079,64500.0,64492.0,0.155055]
[1728878657659,0.155043,64498.0,64492.0,0.155055]
[1728878658130,0.155043,64498.0,64487.0,0.310139]
[1728878658340,0.155046,64497.0,64489.0,0.23255994]
[1728878658552,0.155046,64497.0,64490.0,0.155062]
[1728878658722,0.155045,64498.0,64489.0,0.23255994]
[1728878658930,0.156045,64498.0,64491.0,0.15506]
[1728878659151,0.156045,64498.0,64489.0,0.38762294]
[1728878659152,0.001,64498.0,64489.0,0.38762294]
[1728878659320,0.155051,64495.0,64488.0,0.155066]
[1728878659910,0.001,64498.0,64487.0,0.310139]
[1728878660113,0.15505,64496.0,64488.0,0.310131]
[1728878660339,0.155054,64494.0,64487.0,0.155068]
[1728878660545,0.310092,64497.0,64487.0,0.155069]
[1728878660546,0.155056,64493.0,64487.0,0.155069]
[1728878660769,0.27064936,64496.0,64486.0,0.310143]
[1728878660981,0.155054,64494.0,64488.0,0.155066]
[1728878661182,0.27064936,64496.0,64488.0,0.155066]
[1728878661385,0.27064936,64491.0,64482.0,0.23255994]
[1728878661600,0.27064936,64491.0,64483.0,0.155078]
[1728878661601,0.155067,64488.0,64483.0,0.155078]
[1728878661798,0.27064936,64491.0,64482.0,0.23207003]
[1728878661996,0.27064936,64491.0,64486.0,0.001]
[1728878662230,0.15507,64487.0,64486.0,0.001]
[1728878662430,0.310126,64490.0,64481.0,0.23255994]
[1728878662647,0.0766,64493.0,64474.0,0.23420794]
[1728878662648,0.27064936,64486.0,64474.0,0.23420794]
[1728878662861,0.16122401,64485.0,64475.0,0.23255994]
[1728878663069,0.230598,64475.0,64474.0,0.001648]
[1728878663325,0.50124736,64475.0,64474.0,0.001648]
[1728878664434,0.50224736,64475.0,64474.0,0.001648]
[1728878664662,0.66347137,64475.0,64474.0,0.001648]
[1728878664874,0.6652842,64475.0,64474.0,0.001648]
[1728878665728,0.93165391,64475.0,64474.0,0.001648]
[1728878666346,0.155134,64460.0,64454.0,0.001648]
[1728878666551,0.42578336,64460.0,64454.0,0.001648]
[1728878666959,0.27064936,64460.0,64454.0,0.001648]
[1728878667225,0.27064936,64470.0,64459.0,0.023]
[1728878667436,0.23255994,64468.0,64466.0,0.15512]
[1728878667651,0.42576036,64470.0,64455.0,0.023]
[1728878667652,0.23255994,64469.0,64455.0,0.023]
[1728878667863,0.17604654,64460.0,64457.0,0.023]
[1728878668063,0.17604654,64460.0,64457.0,0.23255994]
[1728878668064,0.17704654,64460.0,64457.0,0.23255994]
[1728878668287,0.17704654,64460.0,64459.0,0.155137]
[1728878669109,0.155129,64463.0,64459.0,0.155137]
[1728878669350,0.310242,64466.0,64459.0,0.155137]
[1728878669351,0.17604654,64460.0,64459.0,0.155137]
[1728878670220,0.17704654,64460.0,64459.0,0.155137]
[1728878670448,0.17604654,64460.0,64459.0,0.155137]
[1728878670667,0.17704654,64460.0,64459.0,0.155137]
[1728878671123,0.17804654,64460.0,64459.0,0.155137]
[1728878671553,0.17804654,64460.0,64459.0,0.17789209]
[1728878671776,0.002,64460.0,64459.0,0.17764718]
[1728878672441,0.17804654,64460.0,64459.0,0.17764718]
[1728878673098,0.002,64460.0,64459.0,0.33887119]
[1728878673520,0.002,64460.0,64459.0,0.17764718]
[1728878674548,0.002,64460.0,64459.0,0.33887119]
[1728878674763,0.002,64460.0,64459.0,0.33862653]
[1728878675584,0.23255994,64471.0,64459.0,0.33862653]
[1728878675585,0.17604654,64465.0,64463.0,0.310251]
[1728878675796,0.17604654,64465.0,64464.0,0.178125]
[1728878678716,0.005,64485.0,64473.0,0.155102]
[1728878678717,0.17604654,64474.0,64473.0,0.155102]
[1728878678928,0.155088,64480.0,64468.0,0.023]
[1728878678929,0.23255994,64480.0,64479.0,0.155089]
[1728878679135,0.23255994,64480.0,64479.0,0.178089]
[1728878679338,0.17604654,64486.0,64480.0,0.310173]
[1728878679555,0.17604654,64486.0,64483.0,0.178078]
[1728878679763,0.17604654,64486.0,64480.0,0.155085]
[1728878679764,0.155075,64485.0,64480.0,0.155085]
[1728878679974,0.17604654,64482.0,64481.0,0.155082]
[1728878680201,0.17604654,64486.0,64485.0,0.178074]
[1728878680634,0.18304654,64486.0,64485.0,0.178074]
[1728878681106,0.18204654,64486.0,64485.0,0.178074]
[1728878681521,0.18204654,64486.0,64482.0,0.54271994]
[1728878681522,0.17604654,64490.0,64487.0,0.310138]
[1728878681784,0.155065,64489.0,64488.0,0.023]
[1728878681976,0.17604654,64490.0,64479.0,0.023]
[1728878682221,0.02430581,64494.0,64479.0,0.178088]
[1728878682222,0.17604654,64483.0,64479.0,0.178088]
[1728878682420,0.17604654,64483.0,64479.0,0.023]
[1728878682627,0.17604654,64483.0,64481.0,0.023]
[1728878682826,0.17604654,64483.0,64481.0,0.178084]
[1728878683047,0.17604654,64483.0,64480.0,0.023]
[1728878683243,0.17604654,64481.0,64480.0,0.178086]
[1728878683459,0.17604654,64481.0,64480.0,0.023]
[1728878683674,0.33113054,64481.0,64480.0,0.023]
[1728878683888,0.25914654,64481.0,64479.0,0.003]
[1728878684098,0.155086,64480.0,64479.0,0.003]
[1728878684308,0.45564654,64481.0,64467.0,0.23255994]
[1728878684499,0.33113654,64479.0,64477.0,0.23255994]
[1728878684736,0.155092,64478.0,64474.0,0.155099]
[1728878684945,0.17604654,64479.0,64474.0,0.155099]